Cogmind - Beta 17 @@@ ROGUE MODE // 2026.07.07 @ 01:54:47 Player: Ren Result: Destroyed by 35-CQY(h) with Bolt Gun Performance ------------- Evolutions (0) 0 Regions Visited (3) 600 Robots Destroyed (21) 105 Value Destroyed (286) 286 Prototype IDs (30) 600 Alien Tech Used (0) 0 Bonus (800) 800 TOTAL SCORE: 2391 Bonus ------- Registered with UFD 300 Met Optimus in HQ 500 Cogmind --------- Core Integrity 0/250 Matter 295/300 Energy 87/100 System Corruption 0% Temperature Cool (41) Movement Treading (180) Ox2 Location -9/Scraptown Parts ------- > --- POWER (1) -------- (None) > --- PROPULSION (2) --- Overtuned Treads > --- UTILITY (2) ------ High-capacity Storage Unit > --- WEAPON (2) ------- (None) > --- INVENTORY (20) --- Overtuned Titanium Leg Arachnoskeleton Large Storage Unit Signal Interpreter Improved Terrain Scanner Experimental Terrain Scan Processor Seismic Detector Authchip [R/NC] Authchip [R/Combat] Authchip [Device] A0-MCA's Component Scanner High-powered Tractor Beam EM Shotgun High-powered Shock Rifle Light Assault Rifle Subdweller Shrapnel Launcher Makeshift Hammer Peak State ------------ > --- POWER ------------ Light Deuterium Engine > --- PROPULSION ------- Improved Medium Treads Wheel > --- UTILITY ---------- High-capacity Storage Unit Improved Terrain Scanner > --- WEAPON ----------- Improved EM Pulse Cannon Light Cannon > --- INVENTORY -------- Overtuned Titanium Leg Arachnoskeleton Large Storage Unit Signal Interpreter Experimental Terrain Scan Processor Seismic Detector Hardened Light Armor Plating Authchip [R/NC] Authchip [R/Combat] Authchip [Device] A0-MCA's Component Scanner High-powered Tractor Beam EM Shotgun High-powered Shock Rifle Light Assault Rifle Subdweller Shrapnel Launcher Makeshift Hammer [Rating: 25] Favorites ----------- Power Light Deuterium Engine Engine Light Deuterium Engine Propulsion Wheel Treads Improved Medium Treads Wheel Wheel Utility High-capacity Storage Unit Device Seismic Detector Storage High-capacity Storage Unit Protection Hardened Light Armor Plating Weapon Light Cannon Energy Gun Medium Laser Energy Cannon Improved EM Pulse Cannon Ballistic Gun Light Assault Rifle Ballistic Cannon Light Cannon Build | -11 -10 -10 -9 ------- Run | Yrd Mat Sub Scr Slots Evolved . | . . . . Power . | . . . . Propulsion . | . . . . Utility . | . . . . Weapon . | . . . . Parts Attached 23 | 10 5 2 6 Power 2 | 1 . . 1 Engine 2 | 1 . . 1 Core . | . . . . Reactor . | . . . . Propulsion 8 | 4 1 1 2 Treads 3 | . . 1 2 Leg . | . . . . Wheel 5 | 4 1 . . Hover . | . . . . Flight . | . . . . Utility 5 | 2 1 1 1 Device 2 | 1 . . 1 Storage 2 | 1 1 . . Processor . | . . . . Hackware . | . . . . Protection 1 | . . 1 . Artifact . | . . . . Weapon 8 | 3 3 . 2 Energy Gun 3 | 2 . . 1 Energy Cannon 3 | . 2 . 1 Ballistic Gun 1 | 1 . . . Ballistic Cannon 1 | . 1 . . Launcher . | . . . . Special Weapon . | . . . . Impact Weapon . | . . . . Slashing Weapon . | . . . . Piercing Weapon . | . . . . Special Melee Weapon . | . . . . Unidentified Prototypes . | . . . . Parts Lost 11 | . . 4 7 Power 2 | . . 1 1 Propulsion 5 | . . 2 3 Utility 1 | . . . 1 Weapon 3 | . . 1 2 Highest Loss Streak 7 | . . 1 7 To Critical Strikes . | . . . . Average Backups 16 | 3 13 16 17 Power . | . . . . Propulsion 3 | 2 4 3 2 Utility 8 | . 6 9 9 Weapon 4 | . 1 3 5 Tool/Special . | . . . . Unused Backups 20 | . 1 2 17 Power . | . . . . Propulsion 4 | . . 2 2 Utility 10 | . . . 10 Weapon 6 | . 1 . 5 Tool/Special . | . . . . Average Slot Usage (%) 94 | . 99 87 96 Engine 9 | . 14 2 11 Wheel 27 | . 28 27 27 Device 13 | . 14 12 13 Storage 14 | . 14 14 14 Energy Cannon 12 | . 13 11 13 Ballistic Gun 1 | . 2 2 . Ballistic Cannon 13 | . 11 14 13 Peak Build Rating 25 | 7 11 12 25 Average Rating 15 | 5 9 11 18 On Entrance 7 | . 7 11 10 Avg Prop Armor Cover (%) 4 | . . . 4 Naked Turns . | . . . . Heaviest Build 60 | 12 51 55 60 Greatest Support 32 | 32 26 26 30 Greatest Overweight (x) 5 | . 1 4 5 Average Overweight (x) 1 | . . 1 1 Largest Inventory Capacity 20 | 8 20 20 20 Average Capacity 19 | 7 18 20 20 Most Carried 20 | 6 18 20 20 Average Carried 17 | 3 13 17 19 Final Capacity 20 | 8 20 20 20 Final Carried 19 | 6 17 18 19 Class Distribution -------------------- 100% | Mutant Dominant Class ---------------- Mutant | -10/Materials Mutant | -10/Subcaves Mutant | -9/Scraptown Resources | -11 -10 -10 -9 ----------- Run | Yrd Mat Sub Scr Matter Collected 672 | 323 101 203 45 Remotely . | . . . . Salvage Created 583 | 173 168 242 . Parts 41 | 10 13 18 . Haulers Intercepted 1 | . 1 . . Recyclers Shooed 1 | . 1 . . Parts Field Recycled . | . . . . Retrieved Matter . | . . . . Parts Self-Destructed 12 | . . 12 . Prevented 4 | . . 4 . Parts Restored . | . . . . Kills | -11 -10 -10 -9 ------- Run | Yrd Mat Sub Scr Combat Hostiles Destroyed 11 | . 3 8 . Cannons 9 | . 3 6 . AOE 2 | . . 2 . Classes Destroyed 10 | 3 4 3 . Worker 3 | 2 1 . . Builder 1 | . 1 . . Tunneler 3 | 3 . . . Hauler 1 | . 1 . . Recycler 1 | 1 . . . Mechanic 1 | . 1 . . Swarmer 7 | . 3 4 . Grunt 2 | . . 2 . Sentry 1 | . . 1 . Subdweller 1 | . . 1 . Best Kill Streak 4 | 4 3 4 . Combat Bots Only 4 | . 2 4 . Max Kills in Single Turn 2 | 1 1 2 . Gunslinging . | . . . . Exploded 2 | . . 2 . Melee . | . . . . Uniques/NPCs Destroyed . | . . . . Combat | -11 -10 -10 -9 -------- Run | Yrd Mat Sub Scr Hostile Shots Fired 103 | . 22 29 52 Missed 21 | . 4 7 10 Hits 82 | . 18 22 42 Projectile 82 | . 18 22 42 Critical Strikes 3 | . . . 3 Damage Taken 1227 | . 155 425 647 Core 250 | . 38 99 113 Absorbed by Shields . | . . . . Core Remaining (%) 100 | 100 . . . Volleys Fired 51 | 13 19 19 . Largest 2 | 2 2 2 . Hottest 86 | 70 86 86 . Shots Fired 96 | 26 35 35 . Gun 36 | 26 6 4 . Cannon 60 | . 29 31 . Launcher . | . . . . Special . | . . . . Kinetic 54 | 13 19 22 . Thermal 13 | 13 . . . Explosive . | . . . . Electromagnetic 29 | . 16 13 . Robot Hit Streak 11 | 11 6 7 . Robot Miss Streak 2 | 1 2 1 . Penetration Max . | . . . . Secondary Targets . | . . . . Shots Hit Robots 58 | 19 21 18 . Core Hits 26 | 8 8 10 . Critical Kills . | . . . . Critical Parts Destroyed 1 | 1 . . . Critical Strikes 3 | 1 2 . . Destroy 1 | 1 . . . Blast 1 | . 1 . . Corrupt 1 | . 1 . . Melee Attacks . | . . . . Impact . | . . . . Slashing . | . . . . Piercing . | . . . . Sneak Attacks . | . . . . Combat Hostiles . | . . . . Follow-up Attacks . | . . . . Damage Inflicted 894 | 193 386 315 . Guns 221 | 193 20 8 . Cannons 616 | . 366 250 . Explosions 57 | . . 57 . Melee . | . . . . Ramming . | . . . . Kinetic 259 | 93 88 78 . Thermal 157 | 100 . 57 . Explosive . | . . . . Electromagnetic 478 | . 298 180 . Impact . | . . . . Slashing . | . . . . Piercing . | . . . . Highest Corruption 1 | . 1 1 . Average Corruption 1 | . 1 1 . Corruption Purged . | . . . . Corruption Blocked . | . . . . Effects 7 | . . 7 . Message Errors 3 | . . 3 . Heat Flow Errors 3 | . . 3 . Parts Rejected 1 | . . 1 . Overload Shots . | . . . . Overflow Damage . | . . . . Projectiles . | . . . . Explosions . | . . . . Melee . | . . . . Knockbacks . | . . . . Impact . | . . . . Kinetic . | . . . . Secondary . | . . . . Self-Inflicted Damage . | . . . . Shots . | . . . . Rammed . | . . . . Targets Rammed . | . . . . Kicked . | . . . . Crushed . | . . . . Highest Temperature 216 | 170 96 216 52 Average Temperature 51 | 71 35 82 34 Received Heat Transfer 462 | . 33 90 339 Siege Activations . | . . . . Martial Activations . | . . . . Shielding Activations . | . . . . Robots Disrupted . | . . . . Combat Hostiles . | . . . . Robots Corrupted . | . . . . Combat Hostiles . | . . . . Parts Fried 4 | . 4 . . Impact Corruptions . | . . . . Robots Melted . | . . . . Combat Hostiles . | . . . . Parts Melted . | . . . . Heat Transferred 346 | 296 . 50 . Parts Sabotaged . | . . . . Parts Stolen . | . . . . Parts Stripped . | . . . . Power Chain Reactions 1 | . . 1 . Alert | -11 -10 -10 -9 ------- Run | Yrd Mat Sub Scr Maximum Alert Level . | . . . . Low Security (%) 100 | 100 100 . . Level 1 . | . . . . Level 2 . | . . . . Level 3 . | . . . . Level 4 . | . . . . Level 5 . | . . . . High Security . | . . . . Max Security . | . . . . Peak Influence 100 | 20 100 . . Initial . | . . . . Average 21 | 2 25 . . Influence Increases 480 | 30 225 225 . Destroy 0b10 Robot/C 200 | . 60 140 . Destroy 0b10 Robot/NC 50 | 30 20 . . Destroy Leader 22 | . 12 10 . Successful Hack 11 | . 11 . . Destroy Structure 2 | . 2 . . Lose Combat Pursuer 195 | . 120 75 . Influence Decreases 480 | 30 149 301 . Entered New Map 37 | . . 37 . Time Decay 423 | 30 149 244 . Lost Part 20 | . . 20 . Squads Dispatched 3 | . 3 . . Investigation 2 | . 2 . . Extermination . | . . . . Reinforcement 1 | . 1 . . Assault . | . . . . Garrison . | . . . . Intercept . | . . . . Searches Triggered . | . . . . Construction Impeded . | . . . . Haulers Reinforced . | . . . . Active Scanning Responses . | . . . . Cargo Convoy Interrupts . | . . . . Stealth | -11 -10 -10 -9 --------- Run | Yrd Mat Sub Scr Distress Signals 2 | . 2 . . Communications Jammed . | . . . . Distress Signals . | . . . . Times Spotted 29 | . 13 8 8 Peak Tracking Total 7 | . 6 6 7 Tactical Retreats 6 | . 4 2 . Traps | -11 -10 -10 -9 ------- Run | Yrd Mat Sub Scr Traps Triggered 6 | . 2 4 . Indirectly . | . . . . Trap Hack Attempts . | . . . . Triggered . | . . . . Disarmed . | . . . . Reprogrammed . | . . . . Reused . | . . . . Traps Extracted . | . . . . Installed . | . . . . Triggered . | . . . . Machines | -11 -10 -10 -9 ---------- Run | Yrd Mat Sub Scr Machines Disabled 1 | . . 1 . Max in Single Turn 1 | . . 1 . Machines Repaired . | . . . . Machines Dismantled . | . . . . Machines Sabotaged . | . . . . Overloaded Fab Kills . | . . . . Hacking | -11 -10 -10 -9 --------- Run | Yrd Mat Sub Scr Machines Accessed 11 | . 4 1 6 Terminals 4 | . 4 . . Fabricators . | . . . . Repair Stations . | . . . . Recycling Units . | . . . . Scanalyzers . | . . . . Garrison Access . | . . . . Total Hacks 45 | . 12 9 24 Successful 37 | . 4 9 24 Failed 8 | . 8 . . Catastrophic . | . . . . Database Lockouts . | . . . . Manual 9 | . 9 . . Terminals 12 | . 12 . . Fabricators . | . . . . Repair Stations . | . . . . Recycling Units . | . . . . Scanalyzers . | . . . . Garrison Access . | . . . . Terminal Hacks 36 | . 3 9 24 Record 31 | . . 8 23 Prototype ID Bank 2 | . 2 . . Recall Investigation 1 | . 1 . . Proto ID Catalog 2 | . . 1 1 Fabricator Hacks . | . . . . Repair Station Hacks . | . . . . Recycling Unit Hacks . | . . . . Scanalyzer . | . . . . Garrison Access Hacks . | . . . . Unauthorized Hacks 1 | . 1 . . Terminals 1 | . 1 . . Botnet 1 | . 1 . . Fabricators . | . . . . Repair Stations . | . . . . Recycling Units . | . . . . Scanalyzers . | . . . . Garrison Access . | . . . . Data Cores Recovered . | . . . . Used . | . . . . Hacking Detections 4 | . 4 . . Full Trace Events 1 | . 1 . . Feedback Events . | . . . . Feedback Blocked . | . . . . Robot Schematics Acquired . | . . . . Robots Built . | . . . . Authchips . | . . . . Time . | . . . . Total Robot Build Rating . | . . . . Part Schematics Acquired . | . . . . Parts Built . | . . . . Authchips . | . . . . Time . | . . . . Total Part Build Rating . | . . . . Part Studies Acquired . | . . . . Parts Repaired . | . . . . Time . | . . . . Parts Recycled . | . . . . Recycled Matter . | . . . . Retrieved Matter . | . . . . Retrieved Components . | . . . . Parts Scanalyzed . | . . . . Part Schematics Acquired . | . . . . Parts Damaged . | . . . . Bothacking | -11 -10 -10 -9 ------------ Run | Yrd Mat Sub Scr Used RIF Installer . | . . . . Robots Hacked . | . . . . Non-combat . | . . . . Combat . | . . . . Robot Hacks Applied . | . . . . Relay Couplers Released . | . . . . Fabnet Peak Effective % . | . . . . Robots Rewired . | . . . . Allies Hacked . | . . . . Hacks Repelled . | . . . . Allies | -11 -10 -10 -9 -------- Run | Yrd Mat Sub Scr Total Allies . | . . . . Largest Group . | . . . . Highest-Rated Group . | . . . . Highest-Rated Ally . | . . . . Total Orders . | . . . . Ally Attacks . | . . . . Total Damage . | . . . . Kills . | . . . . Allies Corrupted . | . . . . Allies Melted . | . . . . Intel | -11 -10 -10 -9 ------- Run | Yrd Mat Sub Scr Active Infowar (turns) 3777 | 37 597 810 2333 Terrain 1001 | . . . 1001 Seismic 2776 | 37 597 810 1332 Robot Analysis Total . | . . . . Derelict Logs Recovered 3 | . . 1 2 Drone Launches . | . . . . Drone Recoveries . | . . . . Exploration | -11 -10 -10 -9 ------------- Run | Yrd Mat Sub Scr Turns Passed 3985 | 137 597 900 2351 Spaces Moved 3117 | 91 470 728 1828 Core 3 | 3 . . . Treads 8 | . . . 8 Legs . | . . . . Wheels 3106 | 88 470 728 1820 Hover . | . . . . Flight . | . . . . Fastest Speed 50 | 50 80 105 110 Average Speed 107 | 87 102 107 110 Slowest Speed 240 | 100 105 140 240 Overloaded Moves . | . . . . Propulsion Burnouts . | . . . . Robots Hopped . | . . . . Potential Cave-ins . | . . . . Cave-ins Triggered . | . . . . Exploration Rate (%) 46 | 4 55 35 90 Regions Visited 3 Branch Regions 2 Pre-discovered Areas 1 | . . . 1 Known Exits Taken . | . . . . Unknown Exits Taken 3 | 1 1 1 . Scrap Searched 9 | . . 2 7 Spaces Dug . | . . . . Terrain Destroyed 4 | . . 4 . Melee . | . . . . Projectile . | . . . . AOE 4 | . . 4 . Terrain Rammed . | . . . . Walls Destroyed . | . . . . Machines Disabled . | . . . . Actions | -11 -10 -10 -9 --------- Run | Yrd Mat Sub Scr Total 3633 | 118 550 806 2159 Wait 389 | . 34 43 312 Move 3114 | 90 469 727 1828 Hop . | . . . . Pick Up 25 | 4 11 4 6 Fast Attach 15 | 7 3 1 4 Attach 3 | . . 2 1 Detach 4 | . 3 . 1 Swap 19 | 4 6 7 2 Drop 13 | . 5 3 5 Fire 51 | 13 19 19 . Melee . | . . . . Ram . | . . . . Kick . | . . . . Crush . | . . . . Escape Stasis . | . . . . Rewire . | . . . . Trap . | . . . . Miscellaneous . | . . . . Route ------- -11/Scrapyard -10/Materials (discovered 2 exits: [*Min] / *Sub) -10/Subcaves -9/Scraptown (discovered 2 exits: [*Fac x2]) History --------- Turn | Location | Event 4 | -11/Scrapyard | Discovered new exit (range 15) 138 | -11/Scrapyard | Entered Materials 318 | -10/Materials | Build established: Mutant 409 | -10/Materials | Discovered new exit (range 13) 706 | -10/Materials | Discovered new exit (range 5) 735 | -10/Materials | Entered Subcaves 736 | -10/Subcaves | Approached by a straggling Scientist 1093 | -10/Subcaves | Learned location of 1 exit from Materials 1124 | -10/Subcaves | Visited 4L-MR0's lab 1151 | -10/Subcaves | Found Arachnoskeleton 1213 | -10/Subcaves | Scientist uncovered a shortcut to Scraptown 1526 | -10/Subcaves | Shifting Twisted Machinery released Scrap Shield 1526 | -10/Subcaves | Shifting Twisted Machinery released Sub. Laser 1623 | -10/Subcaves | Core integrity fell below 50% 1635 | -10/Subcaves | Entered Scraptown 1635 | -9/Scraptown | System corruption cleaned by C-Scrubber 1832 | -9/Scraptown | Visited Cave Peace 1881 | -9/Scraptown | Visited Comm Corps 2241 | -9/Scraptown | Discovered new exit (range 5) 2284 | -9/Scraptown | Scanned Subdweller tech in exchange for log data 2287 | -9/Scraptown | Learned location of 1 exit from Factory 2288 | -9/Scraptown | Learned location of Zion (-7) 2311 | -9/Scraptown | Visited The Evicted 2363 | -9/Scraptown | Visited Spacefarers 2432 | -9/Scraptown | Visited Cyclists 2457 | -9/Scraptown | Visited SPCMW 2500 | -9/Scraptown | Visited TADAMA 2741 | -9/Scraptown | Visited UFD Registry 2741 | -9/Scraptown | Registered with UFD as "Flexicase" 2773 | -9/Scraptown | Visited Science Guys 2810 | -9/Scraptown | Visited A0-MCA Data Center 2817 | -9/Scraptown | Given a B- rating by A0-MCA 2823 | -9/Scraptown | Found A0-MCA's Component Scanner 2846 | -9/Scraptown | Visited LU-1G1's Boring Crew 2872 | -9/Scraptown | Visited Infowarlord's Domain 2882 | -9/Scraptown | Found Exp. Terrain Scan Processor 2901 | -9/Scraptown | Visited Scrap Suit Storage 2940 | -9/Scraptown | Visited Supply Room 2962 | -9/Scraptown | Visited Cartography Club 3160 | -9/Scraptown | Discovered new exit (range 10) 3541 | -9/Scraptown | Visited DA-N13 Charitable Foundation 3553 | -9/Scraptown | Found DCF Scrap (29 items) 3632 | -9/Scraptown | Visited Scrapoid Pod Storage 3864 | -9/Scraptown | Met Optimus 3864 | -9/Scraptown | Accepted into 0bPrime 3934 | -9/Scraptown | Civil war broke out across Scraptown 3985 | -9/Scraptown | Core integrity fell below 20% 3986 | -9/Scraptown | Destroyed by 35-CQY(h) with Bolt Gun Last Messages --------------- JW-LUP(j) heat damages Ovr. Pulse Rifle. Bolt penetrates BP-1KI(t). Bolt penetrates Wall. Penetrated by Bolt. Wheel destroyed. Lgt. Deuterium Engine destroyed. Bolt penetrates SS-M6O(E). Critical hit (Burn: +50). Bolt penetrates SS-M6O(E). BP-1KI(t) destroyed. LZ-9GI(j) cannibalizes Lgt. Ion Engine to repair Lgt. Deuterium Engine. SS-M6O(E) destroyed. Penetrated by Bolt. Imp. Medium Treads destroyed. Critical hit (Burn: +50). Penetrated by Bolt. Acquired Ovr. Treads. Hrd. Light Armor Plating destroyed. Penetrated by Bolt. Map ----- +----------------------------------------------------+ | | | | | | | | | | | | | | | | | | | ?????????????????????????????????????????????????? | | ?????????????????????????????????????????????????? | | ?????????????????#???????????????????????????????? | | ?????????????????????????????????????????????????? | | ?????????????????????????????????????????????????? | | ????????????????????#????????????????????????????? | | ????????????#????????????????????????????????????? | | ???????????#???????????????#?????????????????????? | | ??????#????????????#???#????#?#???##?????????????? | | ?????????????????????##??##?#????????????????????? | | ???????#?????#??????????#??###???????#???????????? | | ????????????????????#?######?##???????#??????????? | | ???????????????##??#####"["#?##?#?#??????????????? | | ??????????????####??#?##"p"#?#?#?#?????#?????????? | | ???? ?#""????## ##?#?##%j[#?#??#?#?????#????????? | | ?#"" ##!!"#### ######hh!##??##?#?#?#???#??????? | | != %j @!*#???#???????#????????? | | h |%! j !! #????????##??????????? | | ??############ =##;###;#####?##?#??##?#????????? | | ????#???????### #####?####?#?##?#??????#????????? | | ????#?#?????#?# #??# ? ? #??####???????????#????? | | ??#??????????## #?##???#??####?#??#??#?##???????? | | ?#?????????#??# #?#?? ?#### ########??###??????? | | ????????????#?# #? ? # # #!###??###?#?????????? | | ??????????????# ## #??? ## # #????????#?##??????? | | ??"##########?# #?????### ###???#???###??????? | | " ##[""" ? ## #? ? #X#### ####???#????#?#????? | | " ##[" "" ## #??#?#### ## ###?#??###?#??#????? | | " ##[ "" ## #??? ?# ##?#?#??#??#???????? | | ##" "" ## ####### ######?#?##?####????????? | | ??# " "## # #??###?#?#?????????? | | ??"?# "## # ###??#??#??????????? | | ????##### ##### ## #############?#??####????????? | | ######### ##### ## ###########??##?###??????????? | | """"""""" """"" "" "## #"""""#?? ???#???#???????? | | "## !!!! #? ?#?###??????????? | | "## ##"#?#?????????????? | | "## X" #?#?????????????? | | "## #??#????????????? | | ##??????????????? | | """"""""""""""" "## !! !! !#?#?????????????? | +----------------------------------------------------+ Best States ------------- Heat Dissipation 25 Energy Generation 14 Energy Capacity 140 Matter Stores 300 Matter Capacity 300 Sight Range 16 Terrain Scan Range 16 Terrain Scan Density 10 Armor Coverage 150 Evasion (%) 44 Recoil Reduction 1 Authchip Count 3 Item Schematics ----------------- None Robot Schematics ------------------ None Fabricated ------------ Nothing Repaired ---------- Nothing Studied --------- None Alien Tech Used ----------------- None Achievements -------------- None Challenges ------------ None Game ------ Seed EfficiencyAlertRegenerator Manual? 0 Play Time 00:39:29 Cumulative 72.1 hours Start 2026.07.06 @ 19:38:13 End 2026.07.07 @ 01:54:47 Sessions 4 Manual Loads 0 Difficulty Rogue Special Mode None Game No. 59 Rogue 25 Adventurer 34 Explorer 0 Win Type - Total 0 Types 0/0/0/0/0/0/0/0/0/0 Lore% 41 Gallery% 32 Achievement% 29 Wizard Run 0 Options --------- Layout 1 ASCII 0 Keyboard 1 Movement Numpad Keybinds 0 Fullscreen 1 Font 24/Smallcaps Map View 50x40 Zoom Use 5% Tactical HUD 0 Map Filters NONE Filters NONE Steam 1 RUN: 94cf7294-c404-43e5-bfa0-96211d6b2c06